Cogmind - Beta 12 @@@ ROGUE MODE // 2023.04.04 @ 13:49:24 Player: lyrabold Result: Destroyed by as-41658 with Assembled Heavy Rifle Performance ------------- Evolutions (0) 0 Regions Visited (2) 400 Robots Destroyed (37) 185 Value Destroyed (689) 689 Prototype IDs (4) 80 Alien Tech Used (0) 0 Bonus (0) 0 TOTAL SCORE: 1354 Bonus ------- None Cogmind --------- Core Integrity 0/250 Matter 236/300 Energy 278/280 System Corruption 2% Temperature Cool (9) Movement Treading (160) Location -10/Mines Parts ------- > --- POWER (1) -------- Heavy Ion Engine > --- PROPULSION (2) --- Light Treads Light Treads > --- UTILITY (2) ------ Medium Storage Unit Improved Light Armor Plating > --- WEAPON (2) ------- Autogun Autogun > --- INVENTORY (10) --- Wheel Seismic Detector Transport Network Coupler Improved Light Armor Plating Medium Laser Medium Laser Assault Rifle Autogun Grenade Launcher Mining Laser Peak State ------------ > --- POWER ------------ Heavy Ion Engine > --- PROPULSION ------- Light Treads Light Treads > --- UTILITY ---------- Medium Storage Unit Improved Light Armor Plating > --- WEAPON ----------- Autogun Autogun > --- INVENTORY -------- Wheel Seismic Detector Transport Network Coupler Improved Light Armor Plating Medium Laser Medium Laser Assault Rifle Autogun Grenade Launcher Mining Laser [Rating: 14] Favorites ----------- Power Heavy Ion Engine Engine Heavy Ion Engine Propulsion Light Treads Treads Light Treads Leg Aluminum Leg Utility Medium Storage Unit Device Seismic Detector Storage Medium Storage Unit Processor Transport Network Coupler Protection Improved Light Armor Plating Weapon Medium Laser Energy Gun Medium Laser Ballistic Gun Autogun Launcher Grenade Launcher Special Weapon Mining Laser Build | -11 -10 -10 ------- Run | Jun Mat Min Slots Evolved . | . . . Power . | . . . Propulsion . | . . . Utility . | . . . Weapon . | . . . Parts Attached 48 | 7 35 6 Power 5 | 1 4 . Engine 5 | 1 4 . Core . | . . . Reactor . | . . . Propulsion 9 | 2 7 . Treads 2 | . 2 . Leg 7 | 2 5 . Wheel . | . . . Hover . | . . . Flight . | . . . Utility 12 | 2 8 2 Device 8 | 1 6 1 Storage 2 | 1 1 . Processor 1 | . 1 . Hackware . | . . . Protection 1 | . . 1 Artifact . | . . . Weapon 22 | 2 16 4 Energy Gun 5 | 1 4 . Energy Cannon . | . . . Ballistic Gun 10 | 1 6 3 Ballistic Cannon . | . . . Launcher 3 | . 2 1 Special Weapon 4 | . 4 . Impact Weapon . | . . . Slashing Weapon . | . . . Piercing Weapon . | . . . Special Melee Weapon . | . . . Unidentified Prototypes 1 | . 1 . Parts Lost 2 | . . 2 Power . | . . . Propulsion . | . . . Utility . | . . . Weapon 2 | . . 2 Highest Loss Streak 1 | . . 1 To Critical Strikes . | . . . Average Slot Usage (%) 99 | . 99 99 Engine 13 | . 13 14 Treads 15 | . 8 28 Leg 12 | . 18 . Device 10 | . 9 10 Storage 14 | . 14 14 Processor 2 | . 4 . Energy Gun 10 | . 11 9 Ballistic Gun 14 | . 13 15 Launcher 1 | . . 3 Special Weapon 1 | . 1 . Naked Turns . | . . . Heaviest Build 27 | 12 23 27 Greatest Support 40 | 20 40 40 Greatest Overweight (x) 3 | 2 3 . Average Overweight (x) . | . . . Largest Inventory Capacity 10 | 8 10 10 Average Capacity 9 | 7 8 10 Most Carried 10 | 7 10 10 Average Carried 7 | 4 7 8 Final Capacity 10 | 8 10 10 Final Carried 10 | 6 8 10 Class Distribution -------------------- 100% | Mutant Dominant Class ---------------- Mutant | -10/Materials Mutant | -10/Mines Resources | -11 -10 -10 ----------- Run | Jun Mat Min Matter Collected 1033 | 277 477 279 Remotely . | . . . Salvage Created 1066 | 185 547 334 Parts 76 | 15 44 17 Haulers Intercepted 2 | . 2 . Recyclers Shooed . | . . . Parts Field Recycled . | . . . Retrieved Matter . | . . . Parts Self-Destructed . | . . . Prevented . | . . . Kills | -11 -10 -10 ------- Run | Jun Mat Min Combat Hostiles Destroyed 35 | . 16 19 Guns 22 | . 12 10 AOE 13 | . 4 9 Classes Destroyed 8 | 2 5 1 Worker 2 | . 1 1 Tunneler 4 | 4 . . Hauler 2 | . 2 . Recycler 1 | 1 . . Watcher 3 | . 3 . Swarmer 12 | . 9 3 Grunt 13 | . 7 6 Assembled 10 | . . 10 Best Kill Streak 6 | 3 4 6 Combat Bots Only 6 | . 3 6 Max Kills in Single Turn 3 | 1 2 3 Gunslinging 1 | . 1 . Exploded 3 | . 1 3 Melee . | . . . Uniques/NPCs Destroyed . | . . . Combat | -11 -10 -10 -------- Run | Jun Mat Min Damage Taken 1175 | . 401 774 Core 267 | . 55 212 Absorbed by Shields . | . . . Regen/Repaired (Parts) 23 | . 23 . Core Remaining (%) 100 | 100 . . Volleys Fired 100 | 7 51 42 Largest 2 | 2 2 2 Hottest 100 | 70 100 73 Shots Fired 177 | 13 94 70 Gun 160 | 13 87 60 Cannon . | . . . Launcher 14 | . 4 10 Special 3 | . 3 . Kinetic 94 | 7 44 43 Thermal 69 | 6 46 17 Explosive 14 | . 4 10 Electromagnetic . | . . . Robot Hit Streak 10 | 9 10 9 Robot Miss Streak 4 | 1 3 4 Penetration Max . | . . . Secondary Targets 3 | . 1 2 Max Gunslinging Chain 1 | . 1 1 Shots Hit Robots 104 | 9 51 44 Core Hits 77 | 6 31 40 Critical Kills . | . . . Critical Parts Destroyed 1 | . 1 . Critical Strikes 8 | . 7 1 Burn 7 | . 6 1 Destroy 1 | . 1 . Melee Attacks . | . . . Impact . | . . . Slashing . | . . . Piercing . | . . . Sneak Attacks . | . . . Combat Hostiles . | . . . Follow-up Attacks . | . . . Damage Inflicted 2231 | 105 897 1229 Guns 1301 | 102 630 569 Cannons . | . . . Explosions 873 | . 242 631 Melee . | . . . Ramming 57 | 3 25 29 Kinetic 731 | 28 248 455 Thermal 570 | 74 382 114 Explosive 873 | . 242 631 Electromagnetic . | . . . Impact . | . . . Slashing . | . . . Piercing . | . . . Highest Corruption 2 | . 2 2 Average Corruption 1 | . 1 2 Corruption Purged . | . . . Corruption Blocked . | . . . Effects 12 | . 6 6 Message Errors 4 | . 3 1 Matter Fused 2 | . . 2 Heat Flow Errors 3 | . 1 2 Energy Discharges 1 | . 1 . Data Loss (minor) 1 | . 1 . Weapon Failures 1 | . . 1 Overload Shots . | . . . Overflow Damage 16 | . 10 6 Projectiles . | . . . Explosions 16 | . 10 6 Melee . | . . . Knockbacks . | . . . Impact . | . . . Kinetic . | . . . Secondary . | . . . Self-Inflicted Damage 150 | . 42 108 Shots 8 | . 2 6 Rammed 10 | . 4 6 Targets Rammed 16 | 2 7 7 Kicked 5 | 2 3 . Crushed 1 | . . 1 Highest Temperature 284 | 50 284 253 Average Temperature 68 | 23 67 79 Received Heat Transfer 239 | . 108 131 Siege Activations . | . . . Robots Corrupted . | . . . Combat Hostiles . | . . . Parts Fried . | . . . Impact Corruptions . | . . . Robots Melted . | . . . Combat Hostiles . | . . . Parts Melted 3 | . 3 . Heat Transferred 2220 | 222 1591 407 Parts Sabotaged . | . . . Parts Stolen . | . . . Parts Stripped . | . . . Power Chain Reactions . | . . . Missiles Intercepted . | . . . Alert | -11 -10 -10 ------- Run | Jun Mat Min Peak Influence 403 | 25 403 277 Initial 112 | . 16 112 Average 236 | 10 269 212 Maximum Alert Level 2 | . 2 1 Low Security (%) 28 | 100 19 32 Level 1 64 | . 68 67 Level 2 7 | . 11 . Level 3 . | . . . Level 4 . | . . . Level 5 . | . . . High Security . | . . . Max Security . | . . . Squads Dispatched 2 | . 2 . Investigation 2 | . 2 . Extermination . | . . . Reinforcement . | . . . Assault . | . . . Garrison . | . . . Intercept . | . . . Searches Triggered . | . . . Construction Impeded . | . . . Haulers Reinforced . | . . . Active Scanning Responses . | . . . Cargo Convoy Interrupts . | . . . Stealth | -11 -10 -10 --------- Run | Jun Mat Min Distress Signals 1 | . 1 . Communications Jammed . | . . . Distress Signals . | . . . Times Spotted 49 | . 26 23 Peak Tracking Total 6 | . 5 6 Tactical Retreats 3 | . 2 1 Traps | -11 -10 -10 ------- Run | Jun Mat Min Traps Triggered 8 | . 8 . Indirectly . | . . . Trap Hack Attempts . | . . . Triggered . | . . . Disarmed . | . . . Reprogrammed . | . . . Reused . | . . . Traps Extracted . | . . . Installed . | . . . Triggered . | . . . Machines | -11 -10 -10 ---------- Run | Jun Mat Min Machines Disabled . | . . . Max in Single Turn . | . . . Machines Repaired . | . . . Machines Sabotaged . | . . . Overloaded Fab Kills . | . . . Hacking | -11 -10 -10 --------- Run | Jun Mat Min Machines Accessed 11 | . 11 . Terminals 8 | . 8 . Fabricators . | . . . Repair Stations 1 | . 1 . Recycling Units 2 | . 2 . Scanalyzers . | . . . Garrison Access . | . . . Total Hacks 31 | . 31 . Successful 14 | . 14 . Failed 17 | . 17 . Catastrophic 3 | . 3 . Database Lockouts . | . . . Manual 15 | . 15 . Terminals 25 | . 25 . Fabricators . | . . . Repair Stations 3 | . 3 . Recycling Units 3 | . 3 . Scanalyzers . | . . . Garrison Access . | . . . Terminal Hacks 9 | . 9 . Part Schematic 1 | . 1 . Prototype ID Bank 4 | . 4 . Transport Status 1 | . 1 . Zone Layout 3 | . 3 . Fabricator Hacks . | . . . Repair Station Hacks 2 | . 2 . Scan Component 1 | . 1 . Repair 1 | . 1 . Recycling Unit Hacks . | . . . Scanalyzer . | . . . Garrison Access Hacks . | . . . Unauthorized Hacks 3 | . 3 . Terminals 1 | . 1 . Assimilate 1 | . 1 . Fabricators . | . . . Repair Stations 1 | . 1 . Mechanics 1 | . 1 . Recycling Units 1 | . 1 . Tunnel 1 | . 1 . Scanalyzers . | . . . Garrison Access . | . . . Data Cores Recovered . | . . . Used . | . . . Hacking Detections 10 | . 10 . Full Trace Events 1 | . 1 . Feedback Events . | . . . Feedback Blocked . | . . . Robot Schematics Acquired . | . . . Robots Built . | . . . Authchips . | . . . Time . | . . . Total Robot Build Rating . | . . . Part Schematics Acquired 1 | . 1 . Parts Built . | . . . Authchips . | . . . Time . | . . . Total Part Build Rating . | . . . Parts Repaired 1 | . 1 . Time 26 | . 26 . Parts Recycled . | . . . Recycled Matter . | . . . Retrieved Matter . | . . . Retrieved Components . | . . . Parts Scanalyzed . | . . . Part Schematics Acquired . | . . . Parts Damaged . | . . . Bothacking | -11 -10 -10 ------------ Run | Jun Mat Min Used RIF Installer . | . . . Robots Hacked . | . . . Non-combat . | . . . Combat . | . . . Robot Hacks Applied . | . . . Relay Couplers Released . | . . . Fabnet Peak Effective % . | . . . Robots Rewired . | . . . Allies Hacked . | . . . Hacks Repelled . | . . . Allies | -11 -10 -10 -------- Run | Jun Mat Min Total Allies . | . . . Largest Group . | . . . Highest-Rated Group . | . . . Highest-Rated Ally . | . . . Total Orders . | . . . Ally Attacks . | . . . Total Damage . | . . . Kills . | . . . Allies Corrupted . | . . . Allies Melted . | . . . Intel | -11 -10 -10 ------- Run | Jun Mat Min Robot Analysis Total . | . . . Derelict Logs Recovered . | . . . Drone Launches . | . . . Drone Recoveries . | . . . Exploration | -11 -10 -10 ------------- Run | Jun Mat Min Turns Passed 1854 | 106 1169 579 Spaces Moved 977 | 62 658 257 Core 25 | 23 2 . Treads 455 | . 198 257 Legs 497 | 39 458 . Wheels . | . . . Hover . | . . . Flight . | . . . Fastest Speed 50 | 50 120 160 Average Speed 138 | 105 132 160 Slowest Speed 200 | 150 200 160 Overloaded Moves . | . . . Propulsion Burnouts . | . . . Robots Hopped . | . . . Cave-ins Triggered . | . . . Exploration Rate (%) 52 | 4 99 55 Regions Visited 2 Branch Regions 1 Pre-discovered Areas 1 | . 1 . Known Exits Taken . | . . . Unknown Exits Taken 2 | 1 1 . Scrap Searched 2 | . . 2 Spaces Dug 31 | . 9 22 Terrain Destroyed 108 | . 31 77 Melee . | . . . Projectile 3 | . 3 . AOE 105 | . 28 77 Terrain Rammed . | . . . Walls Destroyed . | . . . Machines Disabled . | . . . Actions | -11 -10 -10 --------- Run | Jun Mat Min Total 1299 | 88 852 359 Wait 115 | 2 75 38 Move 976 | 62 657 257 Hop . | . . . Pick Up 27 | 9 11 7 Fast Attach 16 | 4 12 . Attach 7 | 3 2 2 Detach 3 | . 3 . Swap 25 | . 21 4 Drop 15 | . 13 2 Fire 100 | 7 51 42 Melee . | . . . Ram . | . . . Kick 4 | 1 3 . Crush 11 | . 4 7 Escape Stasis . | . . . Rewire . | . . . Trap . | . . . Miscellaneous . | . . . Route ------- -11/Junkyard -10/Materials (discovered 4 exits: [*Mat x3] / [*Min]) -10/Mines (discovered 1 exit: [*Mat]) History --------- Turn | Location | Event 8 | -11/Junkyard | Discovered new exit (range 14) 107 | -11/Junkyard | Entered Materials 173 | -10/Materials | Discovered new exit (range 13) 287 | -10/Materials | Discovered new exit (range 16) 305 | -10/Materials | Build established: Mutant 408 | -10/Materials | Repaired Grenade Launcher 691 | -10/Materials | Discovered new exit (range 9) 768 | -10/Materials | Discovered new exit (range 13) 1276 | -10/Materials | Entered Mines 1653 | -10/Mines | Assembled infested the area 1658 | -10/Mines | Assisted by a Guerilla fighting off Assembled 1658 | -10/Mines | Discovered new exit (range 12) 1663 | -10/Mines | Core integrity fell below 50% 1843 | -10/Mines | Core integrity fell below 20% 1855 | -10/Mines | Destroyed by as-41658 with Assembled Heavy Rifle Last Messages --------------- 01771_ Acquired 9 matter. 01785_ The unstable cave ceiling collapses. 01792_ System corrupted: Matter fused (-5). 01792_ Acquired 5 matter. 01795_ Acquired 4 matter. 01797_ Acquired 10 matter. 01798_ as-81982 destroyed. 01799_ Acquired 10 matter. 01800_ as-64165 destroyed. 01800_ as-92350 destroyed. 01800_ as-08394 destroyed. 01801_ Acquired 3 matter. 01802_ as-91909 destroyed. 01807_ as-04009 destroyed. 01818_ Acquired 2 matter. 01826_ The unstable cave ceiling collapses. 01826_ Acquired 23 matter. 01827_ Extracted 20 matter. 01839_ as-10932 destroyed. 01855_ as-97574 destroyed. Map ----- +----------------------------------------------------+ | ????????????????????????????????????????? | | ????????????????????????????????????????? | | ????????????????????????????????????????? | | ????????????????????????????????????????? | | ????????????????????????????????????????? | | ????????????????????????????????????????? | | ????????????????????????????????????????? | | ????????????????????????????????????????? | | ????????????????????????????????????????? | | ????????????????????????????????????????? | | ????????????????????????????????????????? | | ????????????????????????????????????????? | | ???????? ??????????????????????????????? | | ??????? ?????????????????????????????? | | ???????? ?####????????????????????????? | | ????????# ## ##???????????????????????? | | ????????# ????????????????????????? | | ????????# ????????????????????????? | | ???????## #????????????????????????? | | ??????## #????????????????????????? | | ??????# ?????????????????????????? | | ??????? ##??????####??????????????? | | ???????? ### #####??? #??????????????? | | ?????????# # #???# #??????????????? | | ????????## #####a########???????? | | ???????## ! %@ #???????? | | ???????# = ########### #???????? | | ???????# #???????????????????? | | #??????# # #???????????????????? | | ##???### # # ##???????????????????? | | #???# ##########????????????????????? | | #???# ####?????????????????????????????? | | #???# #????????????????????????????????? | | ##??#[##???????????????????????????????? | | ####= #???????????????????????????????? | | % #???????????###?????????????????? | | #[ ##?????????## ##????????????????? | | #?????????# ####?????????????? | | # * #?????????# ##????????????? | | ## = #??????????# #????????????? | | ?## # #??????????# #????????????? | | ??### ##????????## #????????????? | | ##### ########## #????????????? | | ##%= =% ###########??? | | ##%###### ## ##?? | | ##### %##[#????## #?? | | ????## %##=######## #?? | | ?????## = [=== #?##### ## #?? | | ??????###%######## #?????## ### ##?? | | ????????# #?????## #####??## #### #??? | +----------------------------------------------------+ Best States ------------- Heat Dissipation 25 Energy Generation 14 Energy Capacity 280 Matter Stores 300 Matter Capacity 300 Sight Range 16 Terrain Scan Range 16 Terrain Scan Density 10 Armor Coverage 150 Evasion (%) 55 Recoil Reduction 2 Item Schematics ----------------- Huge Storage Unit | -10/Materials | Hacked Robot Schematics ------------------ None Fabricated ------------ Nothing Alien Tech Used ----------------- None Achievements -------------- None Challenges ------------ None Game ------ Seed HardcellBiocellProtomatter Manual? 0 Play Time 00:22:51 Cumulative 252.6 hours Start 2023.04.04 @ 13:30:02 End 2023.04.04 @ 13:49:24 Sessions 1 Manual Loads 0 Difficulty Rogue Special Mode None Game No. 149 Rogue 149 Adventurer 0 Explorer 0 Win Type - Total 12 Types 7/0/2/2/0/0/1/0/0 Lore% 78 Gallery% 83 Achievement% 76 Wizard Run 0 Options --------- ASCII 0 Keyboard 1 Movement Arrows Keybinds 0 Fullscreen 2 Font 18/X11 Map View 76x50 Tactical HUD 1 Map Filters NONE Filters NONE Steam 1 RUN: c4aee92b-8b99-4584-bf4c-9869a89dd754